[Event "GrandPrix_30.05"]
[Site "Chess.com"]
[Date "2020.05.30"]
[Round "2"]
[White "ftorodent"]
[Black "Pash2015"]
[Result "1-0"]
[WhiteElo "2139"]
[BlackElo "2207"]
[TimeControl "600+2"]
[EndTime "8:48:52 PDT"]
[Termination "ftorodent won by resignation"]

1. d4 {[%clk 0:10:01.9]} 1... d5 {[%clk 0:09:57.4]} 2. c4 {[%clk 0:10:02.2]}
2... e6 {[%clk 0:09:57.8]} 3. Nf3 {[%clk 0:10:02.8]} 3... Nf6 {[%clk 0:09:58.6]}
4. Nc3 {[%clk 0:10:03.2]} 4... Bb4 {[%clk 0:09:59.2]} 5. Qa4+ {[%clk 0:10:02.4]}
5... Nc6 {[%clk 0:09:59.2]} 6. e3 {[%clk 0:10:03.2]} 6... O-O {[%clk 0:09:52.6]}
7. Bd2 {[%clk 0:10:00]} 7... Bd7 {[%clk 0:09:48.2]} 8. Qc2 {[%clk 0:09:59.9]}
8... Re8 {[%clk 0:09:38.4]} 9. a3 {[%clk 0:09:44.1]} 9... Bf8 {[%clk 0:09:21.2]}
10. Bd3 {[%clk 0:09:13.4]} 10... h6 {[%clk 0:09:10.3]} 11. O-O {[%clk
0:09:01.3]} 11... dxc4 {[%clk 0:08:51.5]} 12. Bxc4 {[%clk 0:09:02.1]} 12... e5
{[%clk 0:08:40.2]} 13. Qb3 {[%clk 0:08:30.2]} 13... Be6 {[%clk 0:07:33.2]} 14.
d5 {[%clk 0:08:17.4]} 14... Na5 {[%clk 0:07:19.4]} 15. dxe6 {[%clk 0:08:18.2]}
15... Nxb3 {[%clk 0:06:39.9]} 16. exf7+ {[%clk 0:08:18.9]} 16... Kh8 {[%clk
0:06:25.2]} 17. fxe8=Q {[%clk 0:08:18.7]} 17... Nxe8 {[%clk 0:06:16]} 18. Bxb3
{[%clk 0:08:16.8]} 18... Bd6 {[%clk 0:05:56.4]} 19. e4 {[%clk 0:08:12.4]} 19...
Nf6 {[%clk 0:05:45.8]} 20. Rfd1 {[%clk 0:08:08.5]} 20... Qd7 {[%clk 0:05:43.7]}
21. Be3 {[%clk 0:08:03.2]} 21... Qg4 {[%clk 0:05:37.8]} 22. h3 {[%clk
0:08:02.4]} 22... Qh5 {[%clk 0:05:35]} 23. Nd2 {[%clk 0:07:48.5]} 23... Rf8
{[%clk 0:04:57.8]} 24. Nc4 {[%clk 0:07:45]} 24... Be7 {[%clk 0:04:50.1]} 25. Nd5
{[%clk 0:07:40.2]} 25... Nxd5 {[%clk 0:04:42.4]} 26. Rxd5 {[%clk 0:07:40.2]}
26... Bf6 {[%clk 0:04:40]} 27. Rad1 {[%clk 0:07:39.1]} 27... Qg6 {[%clk
0:04:37.1]} 28. Nxe5 {[%clk 0:07:27.6]} 28... Qxe4 {[%clk 0:04:25.6]} 29. Nd7
{[%clk 0:07:27.1]} 29... Rf7 {[%clk 0:04:05.1]} 30. R5d2 {[%clk 0:07:13.4]}
30... Re7 {[%clk 0:03:40.4]} 31. Nxf6 {[%clk 0:06:53.4]} 31... gxf6 {[%clk
0:03:38.8]} 32. Bxh6 {[%clk 0:06:53.7]} 32... Qg6 {[%clk 0:03:24.6]} 33. Be3
{[%clk 0:06:43.9]} 33... b6 {[%clk 0:03:10.5]} 34. Bc2 {[%clk 0:06:31.4]} 34...
Qh5 {[%clk 0:03:07.4]} 35. Rd5 {[%clk 0:06:27.3]} 35... Qe2 {[%clk 0:03:04.9]}
36. R1d2 {[%clk 0:06:20.9]} 36... Qe1+ {[%clk 0:03:00.3]} 37. Kh2 {[%clk
0:06:21.7]} 37... Kg7 {[%clk 0:03:01.8]} 38. Bf5 {[%clk 0:06:13.4]} 38... Qa1
{[%clk 0:02:57]} 39. Bd4 {[%clk 0:05:42]} 39... c6 {[%clk 0:02:50.7]} 40. Rd8
{[%clk 0:05:40.5]} 40... Qe1 {[%clk 0:02:46]} 41. Bc3 {[%clk 0:05:38.6]} 41...
Qc1 {[%clk 0:02:29.3]} 42. R8d6 {[%clk 0:05:33.8]} 42... Rf7 {[%clk 0:02:28.6]}
43. Rxc6 {[%clk 0:05:27.9]} 43... Qf1 {[%clk 0:02:23.4]} 44. Be6 {[%clk
0:05:19.9]} 44... Qb5 {[%clk 0:02:19.3]} 45. Rcd6 {[%clk 0:05:12.3]} 45... Rc7
{[%clk 0:02:15.3]} 46. Bxf6+ {[%clk 0:05:09.3]} 46... Kh7 {[%clk 0:02:04.1]} 47.
R2d5 {[%clk 0:05:00]} 47... Qa4 {[%clk 0:01:59.2]} 48. Bf5+ {[%clk 0:05:00.2]}
48... Kg8 {[%clk 0:01:54.7]} 49. Be5 {[%clk 0:04:41.9]} 49... Kf7 {[%clk
0:01:50.9]} 50. Rf6+ {[%clk 0:04:38.5]} 50... Ke7 {[%clk 0:01:49.8]} 51. Re6+
{[%clk 0:04:39.2]} 51... Kf7 {[%clk 0:01:50.5]} 52. Bxc7 {[%clk 0:04:39.7]} 1-0

[Event "GrandPrix_30.05"]
[Site "Chess.com"]
[Date "2020.05.30"]
[Round "2"]
[White "Margency"]
[Black "vladislavkovalev"]
[Result "0-1"]
[WhiteElo "2226"]
[BlackElo "2791"]
[TimeControl "600+2"]
[EndTime "8:48:54 PDT"]
[Termination "vladislavkovalev won by resignation"]

1. e4 {[%clk 0:10:01.9]} 1... e5 {[%clk 0:10:01.1]} 2. Nf3 {[%clk 0:10:00.2]}
2... Nc6 {[%clk 0:10:02.5]} 3. Bc4 {[%clk 0:10:00]} 3... Nf6 {[%clk 0:10:03.2]}
4. d3 {[%clk 0:10:01.2]} 4... Bc5 {[%clk 0:10:04.1]} 5. c3 {[%clk 0:10:00.9]}
5... a6 {[%clk 0:10:04.7]} 6. a4 {[%clk 0:10:00.1]} 6... d6 {[%clk 0:10:04.3]}
7. O-O {[%clk 0:10:00.8]} 7... h6 {[%clk 0:10:05]} 8. Na3 {[%clk 0:10:00.8]}
8... O-O {[%clk 0:09:54.3]} 9. Nc2 {[%clk 0:09:46.1]} 9... Re8 {[%clk 0:09:46]}
10. Be3 {[%clk 0:08:20.1]} 10... Bxe3 {[%clk 0:09:43.7]} 11. Nxe3 {[%clk
0:08:19.4]} 11... Be6 {[%clk 0:09:45]} 12. a5 {[%clk 0:08:13.3]} 12... Bxc4
{[%clk 0:09:43.9]} 13. Nxc4 {[%clk 0:08:11.4]} 13... d5 {[%clk 0:09:44]} 14.
exd5 {[%clk 0:07:32.3]} 14... Qxd5 {[%clk 0:09:45.9]} 15. Qb3 {[%clk 0:07:00.7]}
15... Qb5 {[%clk 0:07:26.8]} 16. Qa2 {[%clk 0:06:12.3]} 16... Rad8 {[%clk
0:07:24.1]} 17. Rad1 {[%clk 0:06:08.9]} 17... e4 {[%clk 0:07:13.3]} 18. dxe4
{[%clk 0:06:03]} 18... Nxe4 {[%clk 0:07:15.2]} 19. Rxd8 {[%clk 0:05:29.2]} 19...
Rxd8 {[%clk 0:07:11]} 20. Re1 {[%clk 0:05:26.6]} 20... Qd5 {[%clk 0:06:53.4]}
21. Qa4 {[%clk 0:04:58.1]} 21... Nc5 {[%clk 0:06:45.6]} 22. Qa2 {[%clk
0:04:41.9]} 22... Ne6 {[%clk 0:05:53.3]} 23. Qa4 {[%clk 0:04:26.2]} 23... Nc5
{[%clk 0:05:38.8]} 24. Qa2 {[%clk 0:04:25.9]} 24... Nd3 {[%clk 0:05:20.5]} 25.
Rd1 {[%clk 0:03:58.9]} 25... Nxa5 {[%clk 0:05:15.6]} 26. Qxa5 {[%clk 0:03:53.4]}
26... Qxc4 {[%clk 0:05:16.9]} 27. Ne5 {[%clk 0:03:40.6]} 27... Qb3 {[%clk
0:03:41.5]} 28. Rd2 {[%clk 0:02:52.9]} 28... Rd5 {[%clk 0:03:36.5]} 29. Qxc7
{[%clk 0:02:06.8]} 29... Nxe5 {[%clk 0:03:24.3]} 30. Qc8+ {[%clk 0:01:33.8]}
30... Kh7 {[%clk 0:03:23]} 31. Qf5+ {[%clk 0:01:34.4]} 31... g6 {[%clk
0:03:24.1]} 0-1

[Event "GrandPrix_30.05"]
[Site "Chess.com"]
[Date "2020.05.30"]
[Round "2"]
[White "TimofeevAr"]
[Black "chessdjw"]
[Result "1-0"]
[WhiteElo "2658"]
[BlackElo "2284"]
[TimeControl "600+2"]
[EndTime "8:48:57 PDT"]
[Termination "TimofeevAr won by resignation"]

1. c4 {[%clk 0:09:59.9]} 1... g6 {[%clk 0:09:52.8]} 2. Nc3 {[%clk 0:09:56.3]}
2... c5 {[%clk 0:09:52.3]} 3. e3 {[%clk 0:09:55.2]} 3... Bg7 {[%clk 0:09:47.1]}
4. h4 {[%clk 0:09:55.6]} 4... Nf6 {[%clk 0:09:44.7]} 5. Be2 {[%clk 0:09:55.6]}
5... d5 {[%clk 0:09:02.4]} 6. cxd5 {[%clk 0:09:54.4]} 6... Nxd5 {[%clk
0:09:02.8]} 7. h5 {[%clk 0:09:55.6]} 7... Nc6 {[%clk 0:09:02.7]} 8. h6 {[%clk
0:09:50.9]} 8... Bf6 {[%clk 0:08:31]} 9. Ne4 {[%clk 0:09:44.2]} 9... Bf5 {[%clk
0:07:36.3]} 10. Nxf6+ {[%clk 0:09:23.6]} 10... Nxf6 {[%clk 0:05:59.4]} 11. d3
{[%clk 0:09:14.8]} 11... Qd7 {[%clk 0:05:41.2]} 12. e4 {[%clk 0:09:00.3]} 12...
Be6 {[%clk 0:05:25.5]} 13. Nf3 {[%clk 0:08:57.6]} 13... Bg4 {[%clk 0:05:15.8]}
14. Be3 {[%clk 0:08:49.8]} 14... Bxf3 {[%clk 0:05:15.7]} 15. Bxf3 {[%clk
0:08:49.7]} 15... Nd4 {[%clk 0:05:11.7]} 16. e5 {[%clk 0:08:45.9]} 16... Nxf3+
{[%clk 0:04:04.4]} 17. Qxf3 {[%clk 0:08:44.6]} 17... Ng4 {[%clk 0:03:56.9]} 18.
Qe4 {[%clk 0:08:43]} 18... Nxe3 {[%clk 0:03:33.2]} 19. fxe3 {[%clk 0:08:41]}
19... Rd8 {[%clk 0:03:31.7]} 20. Rd1 {[%clk 0:08:33.6]} 20... O-O {[%clk
0:03:31]} 21. O-O {[%clk 0:08:32.6]} 21... Qd5 {[%clk 0:03:20.1]} 22. b3 {[%clk
0:08:06.9]} 22... Qxe4 {[%clk 0:03:20.3]} 23. dxe4 {[%clk 0:08:07.9]} 23... Rfe8
{[%clk 0:03:14.3]} 24. Kf2 {[%clk 0:08:06.7]} 24... Kf8 {[%clk 0:02:44.2]} 25.
Ke2 {[%clk 0:07:59]} 25... e6 {[%clk 0:02:16.8]} 26. Rd6 {[%clk 0:07:00.5]}
26... Ke7 {[%clk 0:01:25.1]} 27. Rfd1 {[%clk 0:06:59.9]} 27... Rf8 {[%clk
0:01:20.8]} 28. g4 {[%clk 0:06:57]} 28... g5 {[%clk 0:01:07.2]} 29. a4 {[%clk
0:06:46.8]} 29... Rg8 {[%clk 0:00:46.5]} 30. a5 {[%clk 0:06:41.6]} 30... Rgf8
{[%clk 0:00:37.9]} 31. R1d2 {[%clk 0:05:57.3]} 31... Rxd6 {[%clk 0:00:38.7]} 32.
exd6+ {[%clk 0:05:57.7]} 32... Kd7 {[%clk 0:00:40.1]} 33. e5 {[%clk 0:05:57.7]}
33... f6 {[%clk 0:00:41.2]} 34. Kd3 {[%clk 0:05:59]} 34... fxe5 {[%clk
0:00:36.1]} 35. Ke4 {[%clk 0:06:00.3]} 35... Rf6 {[%clk 0:00:08.9]} 36. Kxe5
{[%clk 0:06:00.7]} 36... Rxh6 {[%clk 0:00:10.5]} 37. Rf2 {[%clk 0:06:01.8]}
37... Ke8 {[%clk 0:00:11.8]} 38. e4 {[%clk 0:05:58]} 38... b5 {[%clk 0:00:12.7]}
39. a6 {[%clk 0:05:54.7]} 39... Rg6 {[%clk 0:00:08.9]} 40. Rc2 {[%clk
0:05:52.7]} 40... Kd7 {[%clk 0:00:06.2]} 41. Rxc5 {[%clk 0:05:52.4]} 41... h5
{[%clk 0:00:06.1]} 42. gxh5 {[%clk 0:05:44.4]} 42... Rg8 {[%clk 0:00:07.1]} 43.
Rc7+ {[%clk 0:05:45]} 43... Kd8 {[%clk 0:00:08.1]} 44. Rxa7 {[%clk 0:05:46]} 1-0

[Event "GrandPrix_30.05"]
[Site "Chess.com"]
[Date "2020.05.30"]
[Round "2"]
[White "levvard"]
[Black "PlayChessSimple"]
[Result "1-0"]
[WhiteElo "2038"]
[BlackElo "2141"]
[TimeControl "600+2"]
[EndTime "8:49:08 PDT"]
[Termination "levvard won by checkmate"]

1. b4 {[%clk 0:10:01.9]} 1... f5 {[%clk 0:09:59.1]} 2. Bb2 {[%clk 0:10:01.1]}
2... Nf6 {[%clk 0:09:58.1]} 3. e3 {[%clk 0:09:54.4]} 3... g6 {[%clk 0:09:58.9]}
4. Bc4 {[%clk 0:09:51]} 4... Bg7 {[%clk 0:09:53.8]} 5. Na3 {[%clk 0:09:46.8]}
5... e6 {[%clk 0:09:48.5]} 6. Nf3 {[%clk 0:09:45.7]} 6... O-O {[%clk 0:09:48.6]}
7. O-O {[%clk 0:09:44.6]} 7... a5 {[%clk 0:09:45.2]} 8. b5 {[%clk 0:09:42.7]}
8... b6 {[%clk 0:09:44.4]} 9. Be2 {[%clk 0:09:35.2]} 9... Bb7 {[%clk 0:09:43.9]}
10. Rc1 {[%clk 0:09:33.6]} 10... d6 {[%clk 0:09:39.4]} 11. c4 {[%clk 0:09:32.9]}
11... Nbd7 {[%clk 0:09:38.5]} 12. d4 {[%clk 0:09:24]} 12... Ne4 {[%clk
0:09:37.9]} 13. Nb1 {[%clk 0:09:15.1]} 13... e5 {[%clk 0:09:25.6]} 14. c5 {[%clk
0:08:59]} 14... dxc5 {[%clk 0:08:52.9]} 15. Bc4+ {[%clk 0:08:55.5]} 15... Kh8
{[%clk 0:08:52.2]} 16. Nxe5 {[%clk 0:08:52.1]} 16... Nxe5 {[%clk 0:08:43.3]} 17.
dxe5 {[%clk 0:08:51.4]} 17... f4 {[%clk 0:07:12.3]} 18. exf4 {[%clk 0:08:50]}
18... Rxf4 {[%clk 0:06:34.4]} 19. f3 {[%clk 0:08:46.7]} 19... Nd6 {[%clk
0:05:38.2]} 20. Bd3 {[%clk 0:08:37.4]} 20... Qg5 {[%clk 0:05:32]} 21. g3 {[%clk
0:08:30.6]} 21... Raf8 {[%clk 0:05:18.1]} 22. Qd2 {[%clk 0:08:25.3]} 22... c4
{[%clk 0:04:05.7]} 23. exd6 {[%clk 0:08:20.8]} 23... Qc5+ {[%clk 0:03:49.7]} 24.
Qf2 {[%clk 0:08:14.7]} 24... Rd4 {[%clk 0:02:25.6]} 25. Be2 {[%clk 0:07:57.1]}
25... Bxf3 {[%clk 0:01:50.8]} 26. Bxf3 {[%clk 0:07:56.1]} 26... Rxf3 {[%clk
0:01:46.9]} 27. Qxf3 {[%clk 0:07:38.9]} 27... Rf4+ {[%clk 0:01:43]} 28. Kg2
{[%clk 0:07:25.6]} 28... Rxf3 {[%clk 0:01:42.6]} 29. Bxg7+ {[%clk 0:07:24.6]}
29... Kxg7 {[%clk 0:01:44.2]} 30. Rxf3 {[%clk 0:07:18.2]} 30... cxd6 {[%clk
0:01:42.9]} 31. Na3 {[%clk 0:07:14.4]} 31... d5 {[%clk 0:01:38.2]} 32. Kf1
{[%clk 0:07:06.4]} 32... Qb4 {[%clk 0:01:13.2]} 33. h3 {[%clk 0:07:04.1]} 33...
Qb2 {[%clk 0:01:08.5]} 34. Rc2 {[%clk 0:06:59.3]} 34... Qa1+ {[%clk 0:01:06]}
35. Kg2 {[%clk 0:06:57.9]} 35... Qe5 {[%clk 0:00:41.5]} 36. g4 {[%clk
0:06:53.7]} 36... Qe4 {[%clk 0:00:40.4]} 37. Kf2 {[%clk 0:06:52.8]} 37... Qd4+
{[%clk 0:00:36.8]} 38. Kf1 {[%clk 0:06:51.6]} 38... Qe4 {[%clk 0:00:36.4]} 39.
Kg2 {[%clk 0:06:50.8]} 39... d4 {[%clk 0:00:24.2]} 40. Rxc4 {[%clk 0:06:47.4]}
40... Qe2+ {[%clk 0:00:23]} 41. Kg3 {[%clk 0:06:45.6]} 41... d3 {[%clk
0:00:22.5]} 42. Rc7+ {[%clk 0:06:42.9]} 42... Kh6 {[%clk 0:00:22.3]} 43. Nc4
{[%clk 0:06:33.8]} 43... d2 {[%clk 0:00:21.7]} 44. Ne3 {[%clk 0:06:28.7]} 44...
d1=Q {[%clk 0:00:15.1]} 45. g5+ {[%clk 0:05:50.3]} 45... Kxg5 {[%clk 0:00:13.9]}
46. h4+ {[%clk 0:05:50.4]} 46... Kh6 {[%clk 0:00:02.9]} 47. Ng4+ {[%clk
0:05:50.6]} 47... Kh5 {[%clk 0:00:03.4]} 48. Rxh7# {[%clk 0:05:51.5]} 1-0

[Event "GrandPrix_30.05"]
[Site "Chess.com"]
[Date "2020.05.30"]
[Round "2"]
[White "Forking_U"]
[Black "Andrei_Belozerov"]
[Result "0-1"]
[WhiteElo "2142"]
[BlackElo "2483"]
[TimeControl "600+2"]
[EndTime "8:49:10 PDT"]
[Termination "Andrei_Belozerov won by resignation"]

1. e4 {[%clk 0:10:01.9]} 1... c5 {[%clk 0:09:59.9]} 2. Nf3 {[%clk 0:09:40.2]}
2... d6 {[%clk 0:09:59]} 3. d4 {[%clk 0:09:41.6]} 3... cxd4 {[%clk 0:10:00.5]}
4. Nxd4 {[%clk 0:09:43.5]} 4... Nf6 {[%clk 0:10:01.8]} 5. Nc3 {[%clk 0:09:45]}
5... a6 {[%clk 0:10:03.2]} 6. Be3 {[%clk 0:09:46.7]} 6... e5 {[%clk 0:10:03.6]}
7. Nb3 {[%clk 0:09:47.8]} 7... Be6 {[%clk 0:10:03.7]} 8. Qd2 {[%clk 0:09:49.4]}
8... Nbd7 {[%clk 0:10:00.8]} 9. O-O-O {[%clk 0:09:50.7]} 9... Be7 {[%clk
0:09:50.1]} 10. f4 {[%clk 0:09:51.4]} 10... b5 {[%clk 0:09:39.3]} 11. f5 {[%clk
0:09:12]} 11... Bc4 {[%clk 0:09:27.9]} 12. a3 {[%clk 0:09:05.6]} 12... Rc8
{[%clk 0:08:51.2]} 13. Kb1 {[%clk 0:09:06.9]} 13... Qc7 {[%clk 0:08:28.3]} 14.
g4 {[%clk 0:09:03.9]} 14... Bxf1 {[%clk 0:06:11.6]} 15. Rdxf1 {[%clk 0:08:58.8]}
15... Qb7 {[%clk 0:06:02.9]} 16. Qg2 {[%clk 0:08:51.7]} 16... Rxc3 {[%clk
0:05:59.1]} 17. bxc3 {[%clk 0:08:53.3]} 17... Nxe4 {[%clk 0:05:51.1]} 18. Kb2
{[%clk 0:07:00.6]} 18... d5 {[%clk 0:05:49.8]} 19. Rd1 {[%clk 0:05:19.1]} 19...
Nxc3 {[%clk 0:05:37.7]} 20. Na5 {[%clk 0:04:16]} 20... Qc7 {[%clk 0:05:14.3]}
21. Nb3 {[%clk 0:03:40.9]} 21... O-O {[%clk 0:04:51.2]} 22. Rxd5 {[%clk
0:03:35.1]} 22... Nxd5 {[%clk 0:04:25.1]} 23. Qxd5 {[%clk 0:03:35.3]} 23... Rc8
{[%clk 0:04:25.8]} 24. Qd3 {[%clk 0:03:23]} 24... e4 {[%clk 0:04:02.9]} 25. Qxe4
{[%clk 0:03:18.2]} 25... Nf6 {[%clk 0:03:56.9]} 26. Qd3 {[%clk 0:03:07.8]} 26...
Nxg4 {[%clk 0:03:54.7]} 27. Bd4 {[%clk 0:02:50]} 27... Bf6 {[%clk 0:03:54.2]}
28. Bxf6 {[%clk 0:02:36]} 28... Nxf6 {[%clk 0:03:49.3]} 29. Rd1 {[%clk
0:02:08.7]} 29... h5 {[%clk 0:03:46.8]} 30. Rd2 {[%clk 0:01:59.5]} 30... Qe5+
{[%clk 0:03:44.8]} 31. Ka2 {[%clk 0:01:49.5]} 31... Ne4 {[%clk 0:03:43]} 32. Qd4
{[%clk 0:01:40.3]} 32... Qxf5 {[%clk 0:03:32.9]} 33. Rg2 {[%clk 0:01:34.2]}
33... Nc3+ {[%clk 0:03:21.1]} 34. Kb2 {[%clk 0:01:35.4]} 34... Na4+ {[%clk
0:03:22.6]} 0-1

[Event "GrandPrix_30.05"]
[Site "Chess.com"]
[Date "2020.05.30"]
[Round "2"]
[White "khekhm"]
[Black "Alex_Molchanov"]
[Result "1-0"]
[WhiteElo "2442"]
[BlackElo "2058"]
[TimeControl "600+2"]
[EndTime "8:49:19 PDT"]
[Termination "khekhm won by resignation"]

1. e4 {[%clk 0:10:01.9]} 1... c6 {[%clk 0:09:31.9]} 2. d4 {[%clk 0:09:52.5]}
2... d5 {[%clk 0:09:27.4]} 3. Nc3 {[%clk 0:09:53.9]} 3... dxe4 {[%clk
0:09:26.2]} 4. Nxe4 {[%clk 0:09:55.8]} 4... Bf5 {[%clk 0:09:26.7]} 5. Ng3 {[%clk
0:09:56.5]} 5... Bg6 {[%clk 0:09:28.3]} 6. c3 {[%clk 0:09:57.6]} 6... e6 {[%clk
0:09:24.3]} 7. Nh3 {[%clk 0:09:58.1]} 7... Nf6 {[%clk 0:09:20.4]} 8. Nf4 {[%clk
0:09:59.2]} 8... Bd6 {[%clk 0:09:19.3]} 9. h4 {[%clk 0:09:59.9]} 9... Qc7 {[%clk
0:09:18.3]} 10. Qf3 {[%clk 0:10:00.6]} 10... Nbd7 {[%clk 0:09:02.8]} 11. h5
{[%clk 0:10:00.9]} 11... Bc2 {[%clk 0:09:02.8]} 12. h6 {[%clk 0:09:59.8]} 12...
g6 {[%clk 0:09:03]} 13. Bd3 {[%clk 0:09:58.2]} 13... Bxd3 {[%clk 0:08:57.6]} 14.
Nxd3 {[%clk 0:10:00.1]} 14... Qa5 {[%clk 0:08:35.4]} 15. Bf4 {[%clk 0:09:53.8]}
15... Bxf4 {[%clk 0:08:31.2]} 16. Qxf4 {[%clk 0:09:55.7]} 16... O-O-O {[%clk
0:08:19.4]} 17. O-O {[%clk 0:09:42.3]} 17... Rhf8 {[%clk 0:08:14.1]} 18. b4
{[%clk 0:09:36.7]} 18... Qb5 {[%clk 0:08:02.7]} 19. Rfd1 {[%clk 0:09:21.7]}
19... Nh5 {[%clk 0:07:40.1]} 20. Nxh5 {[%clk 0:09:03.9]} 20... Qxh5 {[%clk
0:07:42]} 21. a4 {[%clk 0:08:53.6]} 21... Qf5 {[%clk 0:06:29.1]} 22. Qg3 {[%clk
0:08:48.8]} 22... Rfe8 {[%clk 0:06:11.6]} 23. b5 {[%clk 0:08:44.5]} 23... c5
{[%clk 0:06:02.7]} 24. Nb2 {[%clk 0:08:36]} 24... Nf6 {[%clk 0:04:25.6]} 25. Nc4
{[%clk 0:08:17.1]} 25... Ne4 {[%clk 0:03:54.3]} 26. Qe3 {[%clk 0:08:17.2]} 26...
Qd5 {[%clk 0:02:59.3]} 27. Ne5 {[%clk 0:07:53.1]} 27... f6 {[%clk 0:02:52.8]}
28. Nf7 {[%clk 0:07:44.1]} 28... Rd7 {[%clk 0:02:51.9]} 29. dxc5 {[%clk
0:07:45.5]} 29... Qxd1+ {[%clk 0:01:56.9]} 30. Rxd1 {[%clk 0:07:45.6]} 30...
Rxd1+ {[%clk 0:01:58.8]} 31. Kh2 {[%clk 0:07:46.8]} 31... Rd7 {[%clk 0:01:34.5]}
32. Qxe4 {[%clk 0:07:01.5]} 32... Rxf7 {[%clk 0:01:34.9]} 33. c6 {[%clk
0:07:02.9]} 33... Rc7 {[%clk 0:00:46.6]} 34. cxb7+ {[%clk 0:06:52.9]} 34... Kb8
{[%clk 0:00:47.9]} 35. c4 {[%clk 0:06:53]} 35... Rxb7 {[%clk 0:00:43.6]} 36. c5
{[%clk 0:06:53.9]} 36... Rd7 {[%clk 0:00:29.4]} 37. Qc6 {[%clk 0:06:44.9]} 37...
Ree7 {[%clk 0:00:28.8]} 38. b6 {[%clk 0:06:35.6]} 38... f5 {[%clk 0:00:25.4]}
39. a5 {[%clk 0:06:32.4]} 39... a6 {[%clk 0:00:13.8]} 40. f4 {[%clk 0:06:29.7]}
40... Rd5 {[%clk 0:00:11.1]} 41. Kh3 {[%clk 0:06:17]} 41... Rd3+ {[%clk
0:00:11.2]} 42. Kh4 {[%clk 0:06:12.2]} 42... Rd5 {[%clk 0:00:07.8]} 43. Kg5
{[%clk 0:06:11]} 43... Rdd7 {[%clk 0:00:06.2]} 44. Qa4 {[%clk 0:06:00.6]} 44...
e5 {[%clk 0:00:07]} 45. c6 {[%clk 0:06:01.1]} 45... Rd4 {[%clk 0:00:07.1]} 46.
Qa3 {[%clk 0:05:56]} 46... Rf7 {[%clk 0:00:08.4]} 47. Qc5 {[%clk 0:05:52]} 47...
Re4 {[%clk 0:00:04.6]} 48. Qd6+ {[%clk 0:05:47.7]} 48... Kc8 {[%clk 0:00:05.9]}
49. Qe6+ {[%clk 0:05:46.2]} 1-0

[Event "GrandPrix_30.05"]
[Site "Chess.com"]
[Date "2020.05.30"]
[Round "2"]
[White "Sunerorlater"]
[Black "cantdefyme"]
[Result "1-0"]
[WhiteElo "2193"]
[BlackElo "1951"]
[TimeControl "600+2"]
[EndTime "8:49:26 PDT"]
[Termination "Sunerorlater won by resignation"]

1. d4 {[%clk 0:10:01.3]} 1... Nf6 {[%clk 0:10:00.8]} 2. c4 {[%clk 0:09:54]} 2...
g6 {[%clk 0:10:01.5]} 3. Nc3 {[%clk 0:09:52.6]} 3... Bg7 {[%clk 0:09:56.5]} 4.
e4 {[%clk 0:09:52.1]} 4... O-O {[%clk 0:09:58]} 5. h3 {[%clk 0:09:42.7]} 5... d6
{[%clk 0:09:56.8]} 6. Bg5 {[%clk 0:09:41.6]} 6... h6 {[%clk 0:09:54.8]} 7. Be3
{[%clk 0:09:41.2]} 7... e5 {[%clk 0:09:40.4]} 8. d5 {[%clk 0:09:39.7]} 8... a5
{[%clk 0:09:40.8]} 9. Qd2 {[%clk 0:09:36.4]} 9... Kh7 {[%clk 0:09:30.2]} 10. Bd3
{[%clk 0:09:29.9]} 10... Na6 {[%clk 0:09:30]} 11. Nge2 {[%clk 0:09:20]} 11...
Nd7 {[%clk 0:09:25.8]} 12. g4 {[%clk 0:09:10.4]} 12... c6 {[%clk 0:09:24.3]} 13.
Ng3 {[%clk 0:08:59.8]} 13... Nac5 {[%clk 0:09:22.7]} 14. Bc2 {[%clk 0:08:57.9]}
14... Nb6 {[%clk 0:09:22.3]} 15. Qe2 {[%clk 0:08:36.3]} 15... cxd5 {[%clk
0:09:11.2]} 16. cxd5 {[%clk 0:07:52.7]} 16... Bd7 {[%clk 0:08:32.4]} 17. h4
{[%clk 0:07:51.5]} 17... a4 {[%clk 0:08:00.6]} 18. h5 {[%clk 0:07:45.2]} 18...
a3 {[%clk 0:07:30.4]} 19. b3 {[%clk 0:07:40.9]} 19... Bf6 {[%clk 0:07:07.2]} 20.
hxg6+ {[%clk 0:07:39.6]} 20... fxg6 {[%clk 0:07:06.6]} 21. Rxh6+ {[%clk
0:07:31.1]} 21... Kg7 {[%clk 0:07:06.8]} 22. Nf5+ {[%clk 0:06:49.3]} 22... gxf5
{[%clk 0:05:56.5]} 23. gxf5 {[%clk 0:06:46.5]} 23... Rg8 {[%clk 0:03:29.5]} 24.
Qh5 {[%clk 0:06:29.3]} 24... Kf8 {[%clk 0:03:28.5]} 25. Rh7 {[%clk 0:05:29.5]}
25... Be8 {[%clk 0:03:02.6]} 26. Qh6+ {[%clk 0:05:18.9]} 26... Rg7 {[%clk
0:02:41.3]} 27. O-O-O {[%clk 0:04:46.4]} 27... Nbd7 {[%clk 0:00:10.4]} 28. Rg1
{[%clk 0:04:33.2]} 28... Qe7 {[%clk 0:00:09.4]} 29. Rh8+ {[%clk 0:04:28.5]}
29... Kf7 {[%clk 0:00:09]} 30. Qh5+ {[%clk 0:04:24.9]} 1-0